[Event "Live Chess"]
[Site "Chess.com"]
[Date "2010.12.07"]
[Round "-"]
[White "Valkyriee"]
[Black "hipposcottimus"]
[Result "0-1"]
[CurrentPosition "1r1qk2r/p1pn1pp1/4p3/7p/Q2P4/2n4P/PP4P1/1K2RBNR w k -"]
[Timezone "UTC"]
[ECO "D00"]
[ECOUrl "https://www.chess.com/openings/Queens-Pawn-Opening-Blackmar-Diemer-Zeller-Defense-4.f3-Nf6"]
[UTCDate "2010.12.07"]
[UTCTime "05:52:21"]
[WhiteElo "1342"]
[BlackElo "1399"]
[TimeControl "600"]
[Termination "hipposcottimus won - game abandoned"]
[StartTime "05:52:21"]
[EndDate "2010.12.07"]
[EndTime "05:58:13"]
[Link "https://www.chess.com/game/live/74829302"]

1. d4 {[%clk 0:10:00]} 1... d5 {[%clk 0:10:00]} 2. e4 {[%clk 0:09:59.1]} 2... dxe4 {[%clk 0:09:55.7]} 3. Nc3 {[%clk 0:09:58.6]} 3... Bf5 {[%clk 0:09:49.2]} 4. f3 {[%clk 0:09:54.3]} 4... Nf6 {[%clk 0:09:45.4]} 5. h3 {[%clk 0:09:46.4]} 5... h5 {[%clk 0:09:40.4]} 6. Be3 {[%clk 0:09:41.7]} 6... e6 {[%clk 0:09:37.2]} 7. fxe4 {[%clk 0:09:34.1]} 7... Bxe4 {[%clk 0:09:29]} 8. Nxe4 {[%clk 0:09:31.7]} 8... Nxe4 {[%clk 0:09:28.1]} 9. Qf3 {[%clk 0:09:26.1]} 9... Nf6 {[%clk 0:09:07]} 10. Qxb7 {[%clk 0:09:20.2]} 10... Nbd7 {[%clk 0:09:01.6]} 11. Qc6 {[%clk 0:09:10.4]} 11... Bd6 {[%clk 0:08:52.6]} 12. O-O-O {[%clk 0:08:55.4]} 12... Nd5 {[%clk 0:08:50.3]} 13. Bf2 {[%clk 0:07:54.1]} 13... Rb8 {[%clk 0:08:43.5]} 14. Qa4 {[%clk 0:07:29.5]} 14... Bf4+ {[%clk 0:08:23]} 15. Kb1 {[%clk 0:07:22.3]} 15... Be3 {[%clk 0:08:20.4]} 16. Bxe3 {[%clk 0:07:11]} 16... Nxe3 {[%clk 0:08:18.4]} 17. Re1 {[%clk 0:06:55]} 17... Nd5 {[%clk 0:07:49.4]} 18. c3 {[%clk 0:06:36.4]} 18... Nxc3+ {[%clk 0:07:41.4]} 0-1

[Event "Live Chess"]
[Site "Chess.com"]
[Date "2010.12.07"]
[Round "-"]
[White "bigballsnwtn"]
[Black "hipposcottimus"]
[Result "0-1"]
[CurrentPosition "6k1/p6r/8/2p1R2K/2Pp4/3N1P2/PP6/8 w - -"]
[Timezone "UTC"]
[ECO "D06"]
[ECOUrl "https://www.chess.com/openings/Queens-Gambit-Declined-Austrian-Salvio-Countergambit"]
[UTCDate "2010.12.07"]
[UTCTime "01:25:44"]
[WhiteElo "1859"]
[BlackElo "1651"]
[TimeControl "60"]
[Termination "hipposcottimus won on time"]
[StartTime "01:25:44"]
[EndDate "2010.12.07"]
[EndTime "01:27:59"]
[Link "https://www.chess.com/game/live/74775600"]

1. d4 {[%clk 0:01:00]} 1... d5 {[%clk 0:01:00]} 2. c4 {[%clk 0:00:59.2]} 2... c5 {[%clk 0:00:59.9]} 3. dxc5 {[%clk 0:00:57.9]} 3... d4 {[%clk 0:00:58.4]} 4. Nf3 {[%clk 0:00:56.2]} 4... Nc6 {[%clk 0:00:58]} 5. e3 {[%clk 0:00:54.5]} 5... e5 {[%clk 0:00:57.5]} 6. exd4 {[%clk 0:00:53.3]} 6... exd4 {[%clk 0:00:57.2]} 7. Bd3 {[%clk 0:00:50.9]} 7... Nf6 {[%clk 0:00:56.3]} 8. O-O {[%clk 0:00:49.9]} 8... Bg4 {[%clk 0:00:55.9]} 9. Re1+ {[%clk 0:00:48.9]} 9... Be7 {[%clk 0:00:54.4]} 10. h3 {[%clk 0:00:47.4]} 10... Bh5 {[%clk 0:00:52.5]} 11. g4 {[%clk 0:00:45.9]} 11... Nxg4 {[%clk 0:00:51.6]} 12. hxg4 {[%clk 0:00:44.5]} 12... Bxg4 {[%clk 0:00:51.3]} 13. Be4 {[%clk 0:00:43.4]} 13... O-O {[%clk 0:00:47.4]} 14. Bf4 {[%clk 0:00:42.2]} 14... Bxc5 {[%clk 0:00:45.5]} 15. Bxc6 {[%clk 0:00:40.8]} 15... bxc6 {[%clk 0:00:43.3]} 16. Re4 {[%clk 0:00:39.5]} 16... Qf6 {[%clk 0:00:40.2]} 17. Nbd2 {[%clk 0:00:34.1]} 17... Qg6 {[%clk 0:00:39.2]} 18. Bg5 {[%clk 0:00:30.7]} 18... h6 {[%clk 0:00:34.8]} 19. Rxg4 {[%clk 0:00:29.4]} 19... hxg5 {[%clk 0:00:32.5]} 20. Rxg5 {[%clk 0:00:28.5]} 20... Qh6 {[%clk 0:00:31.8]} 21. Ne4 {[%clk 0:00:26.8]} 21... Be7 {[%clk 0:00:30]} 22. Rg3 {[%clk 0:00:23.6]} 22... f6 {[%clk 0:00:29.5]} 23. Qd2 {[%clk 0:00:21.7]} 23... Kf7 {[%clk 0:00:28]} 24. Qxh6 {[%clk 0:00:19.7]} 24... gxh6 {[%clk 0:00:26.7]} 25. Rd1 {[%clk 0:00:19]} 25... f5 {[%clk 0:00:26.4]} 26. Ned2 {[%clk 0:00:16.7]} 26... c5 {[%clk 0:00:24.9]} 27. Ne5+ {[%clk 0:00:15.4]} 27... Kf6 {[%clk 0:00:23.4]} 28. Ndf3 {[%clk 0:00:14.2]} 28... Rg8 {[%clk 0:00:21.5]} 29. Rxg8 {[%clk 0:00:13.2]} 29... Rxg8+ {[%clk 0:00:20.9]} 30. Kh2 {[%clk 0:00:12.5]} 30... Bd6 {[%clk 0:00:17]} 31. Re1 {[%clk 0:00:11.6]} 31... f4 {[%clk 0:00:15.9]} 32. Kh3 {[%clk 0:00:10.3]} 32... h5 {[%clk 0:00:11.6]} 33. Nd3 {[%clk 0:00:08.7]} 33... Rh8 {[%clk 0:00:11.3]} 34. Nh4 {[%clk 0:00:07.6]} 34... Kf7 {[%clk 0:00:09.6]} 35. f3 {[%clk 0:00:07.1]} 35... Be7 {[%clk 0:00:09]} 36. Re4 {[%clk 0:00:06.5]} 36... Bxh4 {[%clk 0:00:08.7]} 37. Kxh4 {[%clk 0:00:05.8]} 37... Rg8 {[%clk 0:00:08.4]} 38. Rxf4+ {[%clk 0:00:05]} 38... Kg6 {[%clk 0:00:06.4]} 39. Re4 {[%clk 0:00:03.9]} 39... Kh7 {[%clk 0:00:06.1]} 40. Re6 {[%clk 0:00:02.8]} 40... Rg7 {[%clk 0:00:05.8]} 41. Kxh5 {[%clk 0:00:01.8]} 41... Kg8 {[%clk 0:00:05.4]} 42. Re5 {[%clk 0:00:01]} 42... Rh7+ {[%clk 0:00:05]} 0-1

[Event "Live Chess"]
[Site "Chess.com"]
[Date "2010.12.07"]
[Round "-"]
[White "hipposcottimus"]
[Black "bigballsnwtn"]
[Result "0-1"]
[CurrentPosition "4kb1r/pp2p1pp/8/2p1N3/2Pr1q2/8/PP2R1PP/R3Q2K w k -"]
[Timezone "UTC"]
[ECO "B27"]
[ECOUrl "https://www.chess.com/openings/Sicilian-Defense-Brussels-Gambit"]
[UTCDate "2010.12.07"]
[UTCTime "01:23:39"]
[WhiteElo "1637"]
[BlackElo "1871"]
[TimeControl "60"]
[Termination "bigballsnwtn won on time"]
[StartTime "01:23:39"]
[EndDate "2010.12.07"]
[EndTime "01:25:27"]
[Link "https://www.chess.com/game/live/74775173"]

1. e4 {[%clk 0:01:00]} 1... c5 {[%clk 0:01:00]} 2. Nf3 {[%clk 0:00:59.7]} 2... f5 {[%clk 0:00:58.5]} 3. c4 {[%clk 0:00:59.4]} 3... fxe4 {[%clk 0:00:57.3]} 4. Ng5 {[%clk 0:00:59.1]} 4... Nf6 {[%clk 0:00:55.9]} 5. f3 {[%clk 0:00:57.4]} 5... d5 {[%clk 0:00:52.6]} 6. fxe4 {[%clk 0:00:55.5]} 6... dxe4 {[%clk 0:00:51.2]} 7. d3 {[%clk 0:00:52.6]} 7... exd3 {[%clk 0:00:49.5]} 8. Bxd3 {[%clk 0:00:51.6]} 8... Nc6 {[%clk 0:00:48.6]} 9. O-O {[%clk 0:00:45.5]} 9... Bg4 {[%clk 0:00:47.4]} 10. Qe1 {[%clk 0:00:44.1]} 10... Qxd3 {[%clk 0:00:43.5]} 11. Ne6 {[%clk 0:00:38.9]} 11... Bxe6 {[%clk 0:00:40.2]} 12. Qxe6 {[%clk 0:00:36.4]} 12... Nd4 {[%clk 0:00:39.1]} 13. Qe1 {[%clk 0:00:24.3]} 13... Ne2+ {[%clk 0:00:37.6]} 14. Kh1 {[%clk 0:00:22]} 14... Ng4 {[%clk 0:00:35.6]} 15. Nd2 {[%clk 0:00:10.3]} 15... Rd8 {[%clk 0:00:33.6]} 16. Nf3 {[%clk 0:00:07.6]} 16... Ne3 {[%clk 0:00:30.4]} 17. Bxe3 {[%clk 0:00:06]} 17... Qxe3 {[%clk 0:00:29.4]} 18. Rf2 {[%clk 0:00:05.8]} 18... Rd3 {[%clk 0:00:25.9]} 19. Rxe2 {[%clk 0:00:05]} 19... Qf4 {[%clk 0:00:23.5]} 20. Ne5 {[%clk 0:00:01.7]} 20... Rd4 {[%clk 0:00:20.5]} 0-1

[Event "Live Chess"]
[Site "Chess.com"]
[Date "2010.12.07"]
[Round "-"]
[White "bigballsnwtn"]
[Black "hipposcottimus"]
[Result "1-0"]
[CurrentPosition "5rk1/pp4pp/2p5/3p4/2PP2rP/2P4K/P7/5R1R b - -"]
[Timezone "UTC"]
[ECO "D31"]
[ECOUrl "https://www.chess.com/openings/Queens-Gambit-Declined-Semi-Slav-Defense-Accelerated-Move-Order"]
[UTCDate "2010.12.07"]
[UTCTime "01:21:31"]
[WhiteElo "1868"]
[BlackElo "1640"]
[TimeControl "60"]
[Termination "bigballsnwtn won on time"]
[StartTime "01:21:31"]
[EndDate "2010.12.07"]
[EndTime "01:23:25"]
[Link "https://www.chess.com/game/live/74774687"]

1. d4 {[%clk 0:01:00]} 1... d5 {[%clk 0:01:00]} 2. c4 {[%clk 0:00:58.8]} 2... c6 {[%clk 0:00:59.7]} 3. Nc3 {[%clk 0:00:57.9]} 3... e6 {[%clk 0:00:59.3]} 4. Nf3 {[%clk 0:00:57.4]} 4... Bb4 {[%clk 0:00:58.4]} 5. Bg5 {[%clk 0:00:55]} 5... f6 {[%clk 0:00:56.4]} 6. Bf4 {[%clk 0:00:53.9]} 6... Bxc3+ {[%clk 0:00:55.8]} 7. bxc3 {[%clk 0:00:52.7]} 7... Nd7 {[%clk 0:00:54.6]} 8. e3 {[%clk 0:00:52]} 8... Ne7 {[%clk 0:00:52]} 9. Nh4 {[%clk 0:00:50.9]} 9... Ng6 {[%clk 0:00:51.5]} 10. Qh5 {[%clk 0:00:49.8]} 10... Kf7 {[%clk 0:00:43.6]} 11. Bd3 {[%clk 0:00:48.3]} 11... f5 {[%clk 0:00:40.7]} 12. O-O {[%clk 0:00:43.4]} 12... Qxh4 {[%clk 0:00:39.4]} 13. Qxh4 {[%clk 0:00:39.4]} 13... Nxh4 {[%clk 0:00:36.8]} 14. Bg5 {[%clk 0:00:37.5]} 14... Ng6 {[%clk 0:00:35.4]} 15. g4 {[%clk 0:00:35.5]} 15... Rf8 {[%clk 0:00:32.4]} 16. gxf5 {[%clk 0:00:34]} 16... exf5 {[%clk 0:00:32.1]} 17. Bxf5 {[%clk 0:00:33]} 17... Nf6 {[%clk 0:00:26.9]} 18. Bd3 {[%clk 0:00:30.4]} 18... Kg8 {[%clk 0:00:24.7]} 19. h4 {[%clk 0:00:28.8]} 19... Nh5 {[%clk 0:00:13.7]} 20. Kg2 {[%clk 0:00:26.6]} 20... Bf5 {[%clk 0:00:06.1]} 21. Bxf5 {[%clk 0:00:24.8]} 21... Rxf5 {[%clk 0:00:05.8]} 22. Rh1 {[%clk 0:00:23.8]} 22... Raf8 {[%clk 0:00:05.4]} 23. f4 {[%clk 0:00:22.6]} 23... Nhxf4+ {[%clk 0:00:03.8]} 24. exf4 {[%clk 0:00:20.7]} 24... Nxf4+ {[%clk 0:00:03.5]} 25. Bxf4 {[%clk 0:00:19.2]} 25... Rxf4 {[%clk 0:00:03.3]} 26. Raf1 {[%clk 0:00:18.1]} 26... Rg4+ {[%clk 0:00:02.8]} 27. Kh3 {[%clk 0:00:17.2]} 1-0

[Event "Live Chess"]
[Site "Chess.com"]
[Date "2010.12.07"]
[Round "-"]
[White "hipposcottimus"]
[Black "bigballsnwtn"]
[Result "0-1"]
[CurrentPosition "r5k1/4B1pp/p1pQ2n1/8/4p3/P7/q5PP/5R1K w - -"]
[Timezone "UTC"]
[ECO "B20"]
[ECOUrl "https://www.chess.com/openings/Sicilian-Defense"]
[UTCDate "2010.12.07"]
[UTCTime "01:19:09"]
[WhiteElo "1644"]
[BlackElo "1864"]
[TimeControl "60"]
[Termination "bigballsnwtn won on time"]
[StartTime "01:19:09"]
[EndDate "2010.12.07"]
[EndTime "01:21:13"]
[Link "https://www.chess.com/game/live/74774199"]

1. e4 {[%clk 0:01:00]} 1... c5 {[%clk 0:01:00]} 2. Bb5 {[%clk 0:00:58.3]} 2... a6 {[%clk 0:00:58.3]} 3. Be2 {[%clk 0:00:58]} 3... f5 {[%clk 0:00:56.2]} 4. Nf3 {[%clk 0:00:57.8]} 4... fxe4 {[%clk 0:00:54.8]} 5. Ng5 {[%clk 0:00:57.5]} 5... Nf6 {[%clk 0:00:51.8]} 6. f3 {[%clk 0:00:53.6]} 6... exf3 {[%clk 0:00:50.2]} 7. Nxf3 {[%clk 0:00:52.4]} 7... d5 {[%clk 0:00:49.2]} 8. O-O {[%clk 0:00:52.1]} 8... Bf5 {[%clk 0:00:47.3]} 9. d3 {[%clk 0:00:51.4]} 9... e6 {[%clk 0:00:45.7]} 10. Na3 {[%clk 0:00:48.8]} 10... Bd6 {[%clk 0:00:43.7]} 11. c4 {[%clk 0:00:48.4]} 11... Nc6 {[%clk 0:00:42.4]} 12. cxd5 {[%clk 0:00:46.9]} 12... exd5 {[%clk 0:00:40.5]} 13. Bg5 {[%clk 0:00:45.3]} 13... O-O {[%clk 0:00:39.2]} 14. d4 {[%clk 0:00:39.8]} 14... cxd4 {[%clk 0:00:37.2]} 15. Nxd4 {[%clk 0:00:38.7]} 15... Be4 {[%clk 0:00:34.2]} 16. Bf3 {[%clk 0:00:35.6]} 16... Bxa3 {[%clk 0:00:27.8]} 17. Nxc6 {[%clk 0:00:25.5]} 17... bxc6 {[%clk 0:00:25.9]} 18. bxa3 {[%clk 0:00:23.1]} 18... Qb6+ {[%clk 0:00:24.1]} 19. Kh1 {[%clk 0:00:20.1]} 19... Nd7 {[%clk 0:00:21.9]} 20. Bxe4 {[%clk 0:00:17.7]} 20... Rxf1+ {[%clk 0:00:20.3]} 21. Qxf1 {[%clk 0:00:16.9]} 21... dxe4 {[%clk 0:00:19.4]} 22. Be7 {[%clk 0:00:15.6]} 22... Ne5 {[%clk 0:00:17.2]} 23. Qf4 {[%clk 0:00:11.8]} 23... Ng6 {[%clk 0:00:13.2]} 24. Qd6 {[%clk 0:00:04.5]} 24... Qb2 {[%clk 0:00:09.9]} 25. Rf1 {[%clk 0:00:01.1]} 25... Qxa2 {[%clk 0:00:07.7]} 0-1

[Event "Live Chess"]
[Site "Chess.com"]
[Date "2010.12.07"]
[Round "-"]
[White "bigballsnwtn"]
[Black "hipposcottimus"]
[Result "1-0"]
[CurrentPosition "r1bq1rBk/p5pQ/1pp1p3/3pP3/1b5p/2N1P3/PP3P1P/R3K3 b Q -"]
[Timezone "UTC"]
[ECO "D11"]
[ECOUrl "https://www.chess.com/openings/Slav-Defense-Modern-Line"]
[UTCDate "2010.12.07"]
[UTCTime "01:17:24"]
[WhiteElo "1860"]
[BlackElo "1648"]
[TimeControl "60"]
[Termination "bigballsnwtn won by checkmate"]
[StartTime "01:17:24"]
[EndDate "2010.12.07"]
[EndTime "01:18:54"]
[Link "https://www.chess.com/game/live/74773833"]

1. d4 {[%clk 0:01:00]} 1... d5 {[%clk 0:01:00]} 2. c4 {[%clk 0:00:59.1]} 2... c6 {[%clk 0:00:59.7]} 3. Nf3 {[%clk 0:00:57.2]} 3... Nd7 {[%clk 0:00:59.3]} 4. Nc3 {[%clk 0:00:56.7]} 4... e6 {[%clk 0:00:58.8]} 5. Bf4 {[%clk 0:00:56.2]} 5... Ngf6 {[%clk 0:00:57.2]} 6. e3 {[%clk 0:00:55.8]} 6... Be7 {[%clk 0:00:54.6]} 7. Bd3 {[%clk 0:00:55.2]} 7... O-O {[%clk 0:00:54.3]} 8. Qc2 {[%clk 0:00:54.4]} 8... Nb6 {[%clk 0:00:33.9]} 9. c5 {[%clk 0:00:52.2]} 9... Nbd7 {[%clk 0:00:30]} 10. Ne5 {[%clk 0:00:50.7]} 10... b6 {[%clk 0:00:29.2]} 11. g4 {[%clk 0:00:48.5]} 11... Nxe5 {[%clk 0:00:27.7]} 12. dxe5 {[%clk 0:00:46.7]} 12... Nxg4 {[%clk 0:00:27.4]} 13. Rg1 {[%clk 0:00:45]} 13... Bxc5 {[%clk 0:00:16.5]} 14. Rxg4 {[%clk 0:00:42.1]} 14... Bb4 {[%clk 0:00:13.3]} 15. Bxh7+ {[%clk 0:00:40.5]} 15... Kh8 {[%clk 0:00:11.6]} 16. Bg5 {[%clk 0:00:39.3]} 16... f6 {[%clk 0:00:10]} 17. Rh4 {[%clk 0:00:37.6]} 17... fxg5 {[%clk 0:00:05.4]} 18. Bg8+ {[%clk 0:00:36.6]} 18... gxh4 {[%clk 0:00:04.5]} 19. Qh7# {[%clk 0:00:35.1]} 1-0

[Event "Live Chess"]
[Site "Chess.com"]
[Date "2010.12.07"]
[Round "-"]
[White "bigballsnwtn"]
[Black "hipposcottimus"]
[Result "1-0"]
[CurrentPosition "6k1/ppq3pp/2pN4/2Bn4/2QP4/2P4P/P1b3P1/5K2 b - -"]
[Timezone "UTC"]
[ECO "C28"]
[ECOUrl "https://www.chess.com/openings/Bishops-Opening-Berlin-Vienna-Hybrid-Variation-4...Bb4"]
[UTCDate "2010.12.07"]
[UTCTime "01:15:04"]
[WhiteElo "1852"]
[BlackElo "1656"]
[TimeControl "60"]
[Termination "bigballsnwtn won on time"]
[StartTime "01:15:04"]
[EndDate "2010.12.07"]
[EndTime "01:16:44"]
[Link "https://www.chess.com/game/live/74773302"]

1. e4 {[%clk 0:01:00]} 1... e5 {[%clk 0:01:00]} 2. Bc4 {[%clk 0:00:57.8]} 2... Nf6 {[%clk 0:00:57.7]} 3. d3 {[%clk 0:00:56.5]} 3... Nc6 {[%clk 0:00:57.1]} 4. Nc3 {[%clk 0:00:56.1]} 4... Bb4 {[%clk 0:00:55]} 5. f4 {[%clk 0:00:55.5]} 5... Bxc3+ {[%clk 0:00:53.4]} 6. bxc3 {[%clk 0:00:55.1]} 6... d5 {[%clk 0:00:52.8]} 7. exd5 {[%clk 0:00:53.7]} 7... Nxd5 {[%clk 0:00:52.5]} 8. fxe5 {[%clk 0:00:52.8]} 8... Nxe5 {[%clk 0:00:50.9]} 9. d4 {[%clk 0:00:50.5]} 9... Nxc4 {[%clk 0:00:49.4]} 10. Nf3 {[%clk 0:00:47.9]} 10... O-O {[%clk 0:00:45.3]} 11. O-O {[%clk 0:00:46.8]} 11... Bg4 {[%clk 0:00:45.1]} 12. h3 {[%clk 0:00:44.5]} 12... Bh5 {[%clk 0:00:42.2]} 13. Qd3 {[%clk 0:00:42.4]} 13... Bg6 {[%clk 0:00:40.4]} 14. Qxc4 {[%clk 0:00:40.9]} 14... c6 {[%clk 0:00:35]} 15. Ne5 {[%clk 0:00:39.5]} 15... Bxc2 {[%clk 0:00:23.2]} 16. Ba3 {[%clk 0:00:38.3]} 16... Re8 {[%clk 0:00:19.6]} 17. Nxf7 {[%clk 0:00:37.3]} 17... Qb6 {[%clk 0:00:12.8]} 18. Bc5 {[%clk 0:00:34.8]} 18... Qc7 {[%clk 0:00:11.1]} 19. Nd6 {[%clk 0:00:32.5]} 19... Rf8 {[%clk 0:00:10.1]} 20. Rxf8+ {[%clk 0:00:30.4]} 20... Rxf8 {[%clk 0:00:09.1]} 21. Rf1 {[%clk 0:00:29.1]} 21... Rxf1+ {[%clk 0:00:03.1]} 22. Kxf1 {[%clk 0:00:28]} 1-0

[Event "Live Chess"]
[Site "Chess.com"]
[Date "2010.12.07"]
[Round "-"]
[White "hipposcottimus"]
[Black "bigballsnwtn"]
[Result "0-1"]
[CurrentPosition "3r1rk1/ppp1ppbp/6p1/4P1N1/1PP2P2/2R4P/PB2n1P1/5RK1 w - -"]
[Timezone "UTC"]
[ECO "B06"]
[ECOUrl "https://www.chess.com/openings/Modern-Defense-with-1-d4-2.c4-Bg7-3.e4-d6"]
[UTCDate "2010.12.07"]
[UTCTime "01:13:54"]
[WhiteElo "1660"]
[BlackElo "1848"]
[TimeControl "60"]
[Termination "bigballsnwtn won by resignation"]
[StartTime "01:13:54"]
[EndDate "2010.12.07"]
[EndTime "01:14:54"]
[Link "https://www.chess.com/game/live/74773045"]

1. e4 {[%clk 0:01:00]} 1... g6 {[%clk 0:01:00]} 2. d4 {[%clk 0:00:58.5]} 2... Bg7 {[%clk 0:00:59.6]} 3. c4 {[%clk 0:00:58.3]} 3... d6 {[%clk 0:00:59.1]} 4. f4 {[%clk 0:00:56.8]} 4... Nf6 {[%clk 0:00:58.6]} 5. Nc3 {[%clk 0:00:54.2]} 5... O-O {[%clk 0:00:58]} 6. Nf3 {[%clk 0:00:53.3]} 6... Nbd7 {[%clk 0:00:57.1]} 7. e5 {[%clk 0:00:52.8]} 7... dxe5 {[%clk 0:00:56]} 8. dxe5 {[%clk 0:00:52.5]} 8... Ng4 {[%clk 0:00:55]} 9. Be2 {[%clk 0:00:52.3]} 9... Nc5 {[%clk 0:00:53.8]} 10. O-O {[%clk 0:00:51.2]} 10... Qxd1 {[%clk 0:00:51.2]} 11. Rxd1 {[%clk 0:00:50.9]} 11... Bf5 {[%clk 0:00:49]} 12. b4 {[%clk 0:00:50]} 12... Ne4 {[%clk 0:00:47.4]} 13. Nxe4 {[%clk 0:00:48.4]} 13... Bxe4 {[%clk 0:00:46.4]} 14. Ng5 {[%clk 0:00:48.1]} 14... Bf5 {[%clk 0:00:43.9]} 15. h3 {[%clk 0:00:47.7]} 15... Nh6 {[%clk 0:00:41.8]} 16. Bd3 {[%clk 0:00:40.8]} 16... Bxd3 {[%clk 0:00:40.5]} 17. Rxd3 {[%clk 0:00:40.5]} 17... Rad8 {[%clk 0:00:39.5]} 18. Rc3 {[%clk 0:00:40.3]} 18... Nf5 {[%clk 0:00:37.7]} 19. Bb2 {[%clk 0:00:39.5]} 19... Nd4 {[%clk 0:00:34.3]} 20. Rf1 {[%clk 0:00:37.7]} 20... Ne2+ {[%clk 0:00:33]} 0-1

[Event "Live Chess"]
[Site "Chess.com"]
[Date "2010.12.07"]
[Round "-"]
[White "bigballsnwtn"]
[Black "hipposcottimus"]
[Result "1-0"]
[CurrentPosition "r4r1k/pb3ppQ/qp2pN2/3nB3/6N1/4P3/1P3PPP/3R1RK1 b - -"]
[Timezone "UTC"]
[ECO "D10"]
[ECOUrl "https://www.chess.com/openings/Slav-Defense-3.Nc3"]
[UTCDate "2010.12.07"]
[UTCTime "01:12:23"]
[WhiteElo "1844"]
[BlackElo "1664"]
[TimeControl "60"]
[Termination "bigballsnwtn won by checkmate"]
[StartTime "01:12:23"]
[EndDate "2010.12.07"]
[EndTime "01:13:47"]
[Link "https://www.chess.com/game/live/74772707"]

1. d4 {[%clk 0:01:00]} 1... d5 {[%clk 0:01:00]} 2. c4 {[%clk 0:00:59.5]} 2... c6 {[%clk 0:00:59.8]} 3. Nc3 {[%clk 0:00:58.9]} 3... Nd7 {[%clk 0:00:59.1]} 4. Nf3 {[%clk 0:00:58.4]} 4... Ngf6 {[%clk 0:00:58.8]} 5. Bf4 {[%clk 0:00:57.9]} 5... e6 {[%clk 0:00:57.7]} 6. e3 {[%clk 0:00:57.4]} 6... Nb6 {[%clk 0:00:56.5]} 7. Qc2 {[%clk 0:00:56.6]} 7... Nxc4 {[%clk 0:00:53.6]} 8. Bxc4 {[%clk 0:00:55]} 8... dxc4 {[%clk 0:00:52.5]} 9. O-O {[%clk 0:00:54.4]} 9... c5 {[%clk 0:00:51.4]} 10. Rad1 {[%clk 0:00:50.7]} 10... Qb6 {[%clk 0:00:50.8]} 11. Na4 {[%clk 0:00:48.9]} 11... Qc6 {[%clk 0:00:48.4]} 12. Ne5 {[%clk 0:00:46.7]} 12... Qa6 {[%clk 0:00:40.9]} 13. dxc5 {[%clk 0:00:44.2]} 13... Bxc5 {[%clk 0:00:38]} 14. Nxc5 {[%clk 0:00:42.6]} 14... Qxa2 {[%clk 0:00:35.6]} 15. Nxc4 {[%clk 0:00:39.7]} 15... O-O {[%clk 0:00:33.7]} 16. Ne5 {[%clk 0:00:34.5]} 16... Nd5 {[%clk 0:00:33.1]} 17. Ne4 {[%clk 0:00:31.4]} 17... Qa6 {[%clk 0:00:29.2]} 18. Ng4 {[%clk 0:00:28.1]} 18... b6 {[%clk 0:00:28.2]} 19. Be5 {[%clk 0:00:25.7]} 19... Bb7 {[%clk 0:00:26.5]} 20. Nef6+ {[%clk 0:00:24.5]} 20... Kh8 {[%clk 0:00:24.9]} 21. Qxh7# {[%clk 0:00:22]} 1-0

[Event "Live Chess"]
[Site "Chess.com"]
[Date "2010.12.07"]
[Round "-"]
[White "hipposcottimus"]
[Black "bigballsnwtn"]
[Result "0-1"]
[CurrentPosition "2r3k1/4pp1p/3p2pb/1R1P4/8/8/5PPP/1Rr3K1 w - -"]
[Timezone "UTC"]
[ECO "B06"]
[ECOUrl "https://www.chess.com/openings/Modern-Defense-with-1-e4-2.Nf3"]
[UTCDate "2010.12.07"]
[UTCTime "01:10:26"]
[WhiteElo "1668"]
[BlackElo "1840"]
[TimeControl "60"]
[Termination "bigballsnwtn won by resignation"]
[StartTime "01:10:26"]
[EndDate "2010.12.07"]
[EndTime "01:12:13"]
[Link "https://www.chess.com/game/live/74772252"]

1. e4 {[%clk 0:01:00]} 1... g6 {[%clk 0:01:00]} 2. Nf3 {[%clk 0:00:59]} 2... Bg7 {[%clk 0:00:59.5]} 3. d4 {[%clk 0:00:58.7]} 3... d6 {[%clk 0:00:59]} 4. c4 {[%clk 0:00:58.3]} 4... Nf6 {[%clk 0:00:58.7]} 5. d5 {[%clk 0:00:57.3]} 5... O-O {[%clk 0:00:58.2]} 6. Nc3 {[%clk 0:00:56.5]} 6... c6 {[%clk 0:00:57.7]} 7. Be2 {[%clk 0:00:56.2]} 7... cxd5 {[%clk 0:00:56.6]} 8. cxd5 {[%clk 0:00:56]} 8... Bg4 {[%clk 0:00:53.3]} 9. O-O {[%clk 0:00:55.1]} 9... Nbd7 {[%clk 0:00:52.7]} 10. Nd4 {[%clk 0:00:53.5]} 10... Qb6 {[%clk 0:00:51.4]} 11. Bxg4 {[%clk 0:00:51.8]} 11... Nxg4 {[%clk 0:00:50.5]} 12. Qxg4 {[%clk 0:00:51.5]} 12... Qxd4 {[%clk 0:00:49.6]} 13. Nb5 {[%clk 0:00:51.2]} 13... Qb4 {[%clk 0:00:45.4]} 14. a4 {[%clk 0:00:50.7]} 14... Nc5 {[%clk 0:00:42.3]} 15. Nc7 {[%clk 0:00:43]} 15... Rac8 {[%clk 0:00:40.3]} 16. Nb5 {[%clk 0:00:34.5]} 16... Qxe4 {[%clk 0:00:39.1]} 17. Qf4 {[%clk 0:00:32.8]} 17... Qxf4 {[%clk 0:00:37.2]} 18. Bxf4 {[%clk 0:00:32.5]} 18... Bxb2 {[%clk 0:00:35.6]} 19. Rab1 {[%clk 0:00:30.8]} 19... Nxa4 {[%clk 0:00:34.7]} 20. Nxa7 {[%clk 0:00:28.7]} 20... Rc2 {[%clk 0:00:33.3]} 21. Nb5 {[%clk 0:00:27.4]} 21... Rfc8 {[%clk 0:00:31.7]} 22. Rfe1 {[%clk 0:00:24.4]} 22... Bc3 {[%clk 0:00:28.4]} 23. Red1 {[%clk 0:00:21.3]} 23... Ba5 {[%clk 0:00:26.5]} 24. Bh6 {[%clk 0:00:19.9]} 24... Nc3 {[%clk 0:00:24.8]} 25. Nxc3 {[%clk 0:00:18.3]} 25... R8xc3 {[%clk 0:00:23.6]} 26. Rxb7 {[%clk 0:00:17.2]} 26... Rc8 {[%clk 0:00:21]} 27. Rbb1 {[%clk 0:00:15.9]} 27... Bd2 {[%clk 0:00:18.6]} 28. Rb5 {[%clk 0:00:14.8]} 28... Bxh6 {[%clk 0:00:15.5]} 29. Rdb1 {[%clk 0:00:14]} 29... Rc1+ {[%clk 0:00:14.3]} 0-1